bitfinex/quotes_ETHUSD_20250215
["timestamp","ask_amount","ask_price","bid_price","bid_amount"]
[1739588443310,3.66133,2731.3,2730.8,8.31053898]
[1739588443513,8.93112,2731.4,2730.8,8.31053898]
[1739588443712,3.66139,2731.2,2730.8,6.84350907]
[1739588445218,8.93112,2731.4,2730.8,10.50540907]
[1739588445922,3.66133,2731.3,2730.8,10.50540907]
[1739588449929,3.66141,2731.2,2730.8,6.84350907]
[1739588451021,3.66141,2731.2,2730.8,10.50542907]
[1739588451219,3.66141,2731.2,2730.9,1.05054291]
[1739588451611,3.66141,2731.2,2731.0,1.53999616]
[1739588453725,8.93117,2731.4,2731.0,1.53999616]
[1739588453920,3.66127,2731.3,2731.0,1.53999616]
[1739588454103,3.66139,2731.2,2731.0,1.53999616]
[1739588454720,8.93117,2731.4,2731.1,3.7915]
[1739588454898,8.93117,2731.4,2731.2,1.53999616]
[1739588455115,12.59236,2731.4,2731.2,1.53999616]
[1739588455292,5.27,2731.4,2731.2,1.53999616]
[1739588456225,8.93113,2731.4,2731.2,1.53999616]
[1739588458229,5.27,2731.4,2731.2,1.53999616]
[1739588458420,8.93112,2731.4,2731.2,1.53999616]
[1739588460337,3.66091,2731.6,2731.2,1.53999616]
[1739588460630,3.66062,2731.8,2731.6,0.7527]
[1739588460794,3.66062,2731.8,2731.7,1.53999616]
[1739588460992,5.531,2731.9,2731.7,1.53999616]
[1739588460993,5.27,2731.9,2731.7,1.53999616]
[1739588461194,3.66013,2732.2,2731.7,1.76926578]
[1739588461405,3.66013,2732.2,2732.0,1.53999616]
[1739588461697,5.8,2732.3,2731.8,3.83037135]
[1739588461929,5.8,2732.3,2732.0,0.7527]
[1739588462111,8.92982,2732.4,2732.0,0.7527]
[1739588462729,5.27,2732.4,2732.0,1.50178214]
[1739588462936,5.27,2732.4,2732.0,4.50178214]
[1739588465840,8.92988,2732.4,2732.0,4.50178214]
[1739588466128,8.92988,2732.4,2732.0,3.7527]
[1739588466512,8.92963,2732.6,2732.0,3.7527]
[1739588467120,3.65967,2732.5,2732.0,3.7527]
[1739588468134,8.92951,2732.6,2732.0,7.41293]
[1739588468527,8.92951,2732.6,2732.1,0.7527]
[1739588468730,8.92951,2732.6,2732.1,4.86003]
[1739588469049,4.48652,2732.9,2732.3,3.0]
[1739588469341,3.65922,2732.9,2732.3,6.65992]
[1739588470216,8.92901,2733.0,2732.3,6.65992]
[1739588470217,8.92901,2733.0,2732.4,4.44141]
[1739588470416,3.65911,2732.9,2732.5,0.744141]
[1739588470613,5.27,2733.0,2732.5,0.744141]
[1739588470939,5.27,2733.0,2732.6,3.65949]
[1739588471157,5.27,2733.0,2732.7,3.7817]
[1739588471812,5.27,2733.0,2732.7,0.7817]
[1739588473627,8.92898,2733.0,2732.7,0.7817]
[1739588473842,8.92898,2733.0,2732.5,3.7817]
[1739588474009,3.65915,2732.9,2732.5,4.46763714]
[1739588474203,3.65926,2732.8,2732.5,3.7817]
[1739588474413,5.27,2733.0,2732.3,0.7817]
[1739588474414,3.65968,2732.5,2732.3,0.7817]
[1739588475114,0.7844,2732.9,2732.3,0.7817]
[1739588475319,3.65975,2732.5,2731.9,4.44215]
[1739588475521,7.3195,2732.5,2732.0,3.0]
[1739588475733,3.65993,2732.3,2732.0,1.41803014]
[1739588475934,7.31948,2732.5,2732.0,1.41803014]
[1739588476112,3.65973,2732.5,2732.0,1.41803014]
[1739588477020,3.65943,2732.7,2732.3,0.7817]
[1739588477344,3.65956,2732.6,2732.3,0.7817]
[1739588478311,3.65943,2732.7,2732.3,0.7817]
[1739588479042,5.27,2732.8,2732.4,3.07767135]
[1739588479222,5.27,2732.8,2732.7,3.0]
[1739588479416,8.92873,2733.2,2732.8,0.7817]
[1739588480142,3.65885,2733.1,2732.8,0.7817]
[1739588481506,5.27,2733.2,2732.8,0.7817]
[1739588481730,5.27,2733.2,2732.9,3.0]
[1739588483131,5.27,2733.2,2733.1,3.0]
[1739588484540,5.27,2733.2,2732.9,0.7817]
[1739588485415,8.92876,2733.2,2732.9,0.7817]
[1739588485614,3.65892,2733.1,2732.6,3.7746]
[1739588486134,3.65892,2733.1,2732.6,5.19174614]
[1739588486338,3.65899,2733.0,2732.6,5.19174614]
[1739588487216,3.65892,2733.1,2732.6,2.19174614]
[1739588487442,3.65912,2732.9,2732.6,0.7746]
[1739588487641,3.65912,2732.9,2732.0,1.41803014]
[1739588487642,3.65938,2732.7,2732.3,0.7746]
[1739588488218,4.41467,2732.9,2732.3,0.7746]
[1739588488417,3.65865,2733.3,2732.8,3.0]
[1739588488617,3.92065,2733.3,2732.9,0.8011]
[1739588488935,0.262,2733.3,2733.0,3.0]
[1739588489136,0.005,2733.4,2733.0,6.65891]
[1739588489444,0.005,2733.4,2733.0,3.65888]
[1739588491048,0.005,2733.4,2733.1,4.45993]
[1739588491260,0.005,2733.4,2733.2,3.0]
[1739588491856,0.005,2733.4,2733.1,1.612981]
[1739588492957,3.66344,2733.4,2733.1,1.612981]
[1739588493151,4.48254,2733.4,2732.9,3.8011]
[1739588493325,3.65879,2733.2,2732.9,0.8011]
[1739588494357,3.65898,2733.0,2732.6,0.8011]
[1739588495144,3.65887,2733.1,2732.6,0.8011]
[1739588495344,3.65902,2733.0,2732.6,1.85494714]
[1739588496558,3.65877,2733.2,2732.7,3.0]
[1739588496864,7.31761,2733.2,2732.7,3.0]
[1739588497067,3.65885,2733.1,2732.7,3.0]
[1739588497562,3.65885,2733.1,2732.6,1.85494714]
[1739588498260,3.65885,2733.1,2732.7,0.85145671]
[1739588498466,3.65885,2733.1,2732.7,3.85145671]
[1739588498763,3.65879,2733.2,2732.7,3.85145671]
[1739588499125,5.27,2733.2,2732.7,3.85145671]
[1739588499352,3.65887,2733.1,2732.7,3.85145671]
[1739588499562,3.65887,2733.1,2732.7,3.0]
[1739588499725,8.92874,2733.2,2732.7,6.65937]
[1739588499930,5.27,2733.2,2732.7,6.65937]
[1739588500338,5.27,2733.2,2732.8,0.8324]
[1739588500538,5.27,2733.2,2732.8,2.36065685]
[1739588502363,5.27,2733.2,2732.8,0.8324]
[1739588502879,5.27,2733.2,2732.8,4.49164]
[1739588503042,8.92875,2733.2,2732.8,0.8324]
[1739588504544,5.27,2733.2,2733.1,0.8324]
[1739588505255,0.005,2733.4,2733.1,0.8324]
[1739588509066,3.65866,2733.3,2733.1,0.8324]
[1739588509269,3.66353,2733.4,2733.0,3.8324]
[1739588509785,3.65871,2733.2,2733.0,3.8324]
[1739588510568,3.65871,2733.2,2733.0,3.0]
[1739588511077,3.65884,2733.1,2733.0,3.0]
[1739588513387,7.31755,2733.2,2733.0,3.0]
[1739588513856,3.65884,2733.1,2733.0,3.0]
[1739588515458,3.65871,2733.2,2733.0,3.0]
[1739588516475,3.65858,2733.3,2733.0,3.0]
[1739588516671,3.65884,2733.1,2732.6,0.7583]
[1739588516870,3.65905,2733.0,2732.6,0.7583]
[1739588517598,3.65884,2733.1,2732.6,0.7583]
[1739588518293,3.65884,2733.1,2732.7,3.0]
[1739588518486,4.43455,2733.2,2732.7,7.401139]
[1739588518970,8.92866,2733.3,2732.7,7.401139]
[1739588519175,8.92866,2733.3,2732.8,0.7584]
[1739588519362,12.58732,2733.3,2732.8,0.7584]
[1739588519563,8.92866,2733.3,2732.8,0.7584]
[1739588519795,3.65871,2733.2,2732.8,0.7584]
[1739588520298,3.65885,2733.1,2732.8,0.7584]
[1739588520664,3.65871,2733.2,2732.8,0.7584]
[1739588521298,5.27,2733.3,2732.8,0.7584]
[1739588521519,5.27,2733.3,2733.0,0.7584]
[1739588521924,8.92858,2733.3,2732.9,3.0]
[1739588523266,5.27,2733.3,2733.0,0.7584]
[1739588523467,8.92858,2733.3,2733.0,0.7584]
[1739588526486,8.92858,2733.3,2732.9,3.0]
[1739588526687,3.65871,2733.2,2732.7,7.41774]
[1739588527094,3.65871,2733.2,2732.7,3.7584]
[1739588527286,3.65871,2733.2,2732.7,7.41778]
[1739588528102,5.27,2733.3,2732.9,3.0]
[1739588528311,8.92861,2733.3,2732.9,3.0]
[1739588529294,5.27,2733.3,2732.9,3.0]
[1739588530008,4.43609,2733.4,2732.4,3.07767135]
[1739588530009,0.005,2733.4,2733.1,0.7503]
[1739588530208,0.005,2733.4,2733.3,3.0]
[1739588530613,0.005,2733.4,2733.3,7.40888]
[1739588533406,0.005,2733.4,2733.3,3.0]
[1739588533611,0.005,2733.4,2733.3,3.65858]
[1739588534312,0.005,2733.4,2733.3,4.765351]
[1739588537279,0.005,2733.4,2733.2,7.40893]
[1739588537515,0.005,2733.4,2733.0,7.40252935]
[1739588537516,0.005,2733.4,2733.1,4.40913]
[1739588537814,0.005,2733.4,2733.2,3.0]
[1739588538901,0.005,2733.4,2733.3,3.65858]
[1739588539107,0.005,2733.4,2733.3,4.40888]
[1739588539704,0.005,2733.4,2733.3,5.515644]
[1739588539917,0.005,2733.4,2733.3,0.7503]
[1739588540217,0.005,2733.4,2733.2,3.6587]
[1739588540729,0.005,2733.4,2733.1,0.7503]
[1739588541387,0.005,2733.4,2733.1,3.7503]
[1739588541600,0.005,2733.4,2732.9,6.65906]
[1739588541801,0.005,2733.4,2732.9,8.37368114]
[1739588543720,0.005,2733.4,2732.9,4.71462114]
[1739588543927,0.005,2733.4,2733.1,3.0]
[1739588547928,0.005,2733.4,2733.1,6.65874]
[1739588548337,0.005,2733.4,2732.9,8.37360114]
[1739588548494,0.005,2733.4,2732.9,4.71462114]
[1739588548828,0.005,2733.4,2733.1,3.0]
[1739588549626,3.66345,2733.4,2732.9,4.71462114]
[1739588549819,0.005,2733.4,2732.9,6.65903]
[1739588550022,3.66348,2733.4,2732.9,3.0]
[1739588550704,0.7711,2733.3,2732.9,3.0]
[1739588551125,0.7711,2733.3,2732.9,6.65909]
[1739588552221,0.7711,2733.3,2733.0,3.65897]
[1739588553915,0.7711,2733.3,2733.0,3.6589]
[1739588555047,0.7711,2733.3,2733.0,3.65887]
[1739588555745,0.7711,2733.3,2733.1,3.65884]
[1739588556847,0.7711,2733.3,2733.0,3.65887]
[1739588557162,0.7711,2733.3,2732.9,3.0]
[1739588557527,0.7711,2733.3,2732.9,6.65907]
[1739588558141,0.7711,2733.3,2733.0,3.6589]
[1739588563230,0.7711,2733.3,2733.0,3.65886]
[1739588564070,0.7711,2733.3,2733.0,7.31775]
[1739588564269,0.7711,2733.3,2733.0,3.65886]
[1739588564772,0.7711,2733.3,2733.0,7.31777]
[1739588565167,0.7711,2733.3,2733.0,3.65886]
[1739588565959,0.7711,2733.3,2733.0,7.31776]
[1739588566273,0.7711,2733.3,2733.0,3.65886]
[1739588566676,0.7711,2733.3,2733.1,3.65881]
[1739588567343,0.7711,2733.3,2733.0,3.65886]
[1739588569553,0.005,2733.4,2733.3,3.65858]
[1739588570543,0.005,2733.4,2733.3,6.65858]
[1739588570746,0.005,2733.4,2733.3,8.19615534]
[1739588571363,0.005,2733.4,2733.3,9.02275534]
[1739588573802,0.005,2733.4,2733.3,7.48518]
[1739588573978,0.005,2733.4,2733.3,8.90699837]
[1739588574181,0.005,2733.4,2733.3,3.0]
[1739588574903,0.005,2733.4,2732.9,3.65904]
[1739588575873,0.005,2733.4,2733.0,3.0]
[1739588576080,0.005,2733.4,2733.0,6.65895]
[1739588576263,0.005,2733.4,2732.8,3.65917]
[1739588576681,0.828,2733.3,2732.9,3.0]
[1739588577447,0.828,2733.3,2732.9,6.6591]
[1739588577670,0.005,2733.4,2733.1,3.0]
[1739588578478,0.005,2733.4,2733.1,6.65878]
[1739588578671,0.005,2733.4,2733.1,3.0]
[1739588578850,0.005,2733.4,2733.0,4.826327]
[1739588579249,5.99323654,2733.6,2733.1,3.0]
[1739588579450,9.65143654,2733.6,2733.0,5.485187]
[1739588579651,9.65143654,2733.6,2733.1,0.8485187]
[1739588580182,3.65842,2733.5,2733.1,0.8485187]
[1739588580387,3.65842,2733.5,2733.0,1.031827]
[1739588580785,9.65143654,2733.6,2733.0,4.690687]
[1739588580995,0.55,2734.0,2733.1,0.7945]
[1739588580996,0.828,2733.9,2733.1,0.7945]
[1739588581186,4.7468,2733.9,2733.4,3.0]
[1739588581375,1.089,2733.9,2733.4,3.0]
[1739588581575,0.828,2733.9,2733.5,3.65828]
[1739588581775,0.828,2733.9,2733.5,4.324108]
[1739588582093,0.812,2734.0,2733.5,4.324058]
[1739588582707,0.812,2734.0,2733.7,3.0]
[1739588582870,0.812,2734.0,2733.4,3.0]
[1739588583066,0.828,2733.9,2733.1,3.65878]
[1739588583401,3.65812,2733.7,2733.1,3.65878]
[1739588583583,4.48579,2733.9,2733.2,3.0]
[1739588584096,3.65804,2733.7,2733.2,3.0]
[1739588584297,0.812,2734.0,2733.1,0.811237]
[1739588584298,3.65835,2733.5,2733.1,0.811237]
[1739588584484,0.828,2733.4,2733.1,0.811237]
[1739588584666,0.828,2733.6,2733.2,3.0]
[1739588584869,4.4862,2733.6,2733.2,3.0]
[1739588585396,0.828,2733.6,2733.2,6.6587]
[1739588585600,9.65108654,2733.9,2733.3,3.65845]
[1739588585772,0.262,2733.8,2733.2,7.8510267]
[1739588586987,5.99323654,2733.9,2733.5,0.7945]
[1739588587194,5.16523654,2733.9,2733.5,0.7945]
[1739588587369,5.16523654,2733.9,2733.5,1.17395]
[1739588587700,5.16523654,2733.9,2733.7,3.0]
[1739588587901,0.55,2734.0,2733.7,3.0]
[1739588588275,0.55,2734.0,2733.7,6.65803]
[1739588589114,0.55,2734.0,2733.7,3.0]
[1739588590403,0.55,2734.0,2733.7,6.65796]
[1739588590774,0.55,2734.0,2733.7,7.806981]
[1739588591274,0.55,2734.0,2733.7,4.149021]
[1739588593088,0.55,2734.0,2733.7,7.807041]
[1739588593325,0.55,2734.0,2733.7,4.149021]
[1739588594030,0.55,2734.0,2733.7,7.807031]
[1739588594198,0.55,2734.0,2733.7,6.65801]
[1739588595120,0.55,2734.0,2733.7,3.0]
[1739588595419,0.55,2734.0,2733.7,6.65802]
[1739588596380,0.55,2734.0,2733.9,6.65777]
[1739588596892,0.55,2734.0,2733.9,3.0]
[1739588600003,5.99621465,2734.0,2733.9,3.0]
[1739588600436,2.33857465,2734.0,2733.9,3.0]
[1739588600605,1.3185,2734.0,2733.9,3.0]
[1739588601699,0.55,2734.0,2733.9,3.0]
[1739588601922,0.55,2734.0,2733.9,6.65777]
[1739588602098,0.5,2734.0,2733.9,3.0]
[1739588603000,0.5,2734.0,2733.9,6.65777]
[1739588603206,0.5,2734.0,2733.9,3.0]
[1739588604242,0.5,2734.0,2733.9,6.65777]
[1739588604736,0.0703125,2734.0,2733.9,8.573953]
[1739588606042,0.0703125,2734.0,2733.9,3.0]
[1739588607604,0.0703125,2734.0,2733.9,6.65777]
[1739588607899,0.0703125,2734.0,2733.9,7.41397]
[1739588614210,0.0703125,2734.0,2733.9,3.7562]
[1739588614709,0.0703125,2734.0,2733.9,3.0]
[1739588615809,0.0703125,2734.0,2733.6,4.41429]
[1739588615810,0.8209,2734.1,2733.6,4.41429]
[1739588615989,0.8209,2734.1,2733.6,5.52898437]
[1739588616191,0.8209,2734.1,2733.7,3.0]
[1739588616395,3.65738,2734.2,2733.7,3.0]
[1739588616896,4.48322,2734.3,2733.7,10.31598]
[1739588617096,4.48322,2734.3,2733.7,6.65797]
[1739588617595,4.48322,2734.3,2733.6,4.87089437]
[1739588617801,3.65751,2734.1,2733.6,3.7562]
[1739588619309,3.65774,2734.0,2733.6,3.0]
[1739588619675,3.65774,2734.0,2733.2,5.6756367]
[1739588619676,3.65795,2733.8,2733.2,5.6756367]
[1739588620132,7.31597,2733.8,2733.3,3.0]
[1739588620533,3.65805,2733.7,2733.3,3.0]
[1739588620685,3.65808,2733.7,2733.3,3.86756367]
[1739588620885,3.65795,2733.8,2733.3,3.86756367]
[1739588622187,0.7961,2734.0,2733.4,0.8053]
[1739588622188,4.45382,2734.0,2733.4,0.8053]
[1739588622484,3.65792,2733.8,2733.4,0.8053]
[1739588622906,3.65772,2734.0,2733.4,0.8053]
[1739588623101,3.65772,2734.0,2733.5,6.65823]
[1739588623302,3.65772,2734.0,2733.5,3.0]
[1739588623502,7.31546,2734.0,2733.5,3.0]
[1739588623702,3.65778,2733.9,2733.5,3.0]
[1739588625116,3.65778,2733.9,2733.4,2.31172673]
[1739588625312,3.65778,2733.9,2733.5,0.89702967]
[1739588625511,3.65778,2733.9,2733.5,3.89702967]
[1739588626837,7.31549,2734.0,2733.5,3.89702967]
[1739588627352,3.65772,2734.0,2733.5,0.89702967]
[1739588627536,0.8251,2733.7,2733.2,0.8053]
[1739588627736,3.6582,2733.6,2733.2,0.8053]
[1739588628429,3.6582,2733.6,2733.2,3.8053]
[1739588629659,0.8251,2733.7,2733.2,0.8053]
[1739588629905,0.8251,2733.7,2733.3,0.38053]
[1739588631014,4.48322,2733.7,2733.3,0.38053]
[1739588631210,0.8251,2733.7,2733.3,0.38053]
[1739588631444,3.65805,2733.7,2733.3,0.38053]
[1739588635835,7.31617,2733.7,2733.3,0.38053]
[1739588637153,3.65805,2733.7,2733.3,0.38053]
[1739588637969,8.82282654,2734.1,2733.5,3.8115]
[1739588638264,3.65765,2734.0,2733.5,3.8115]
[1739588638665,5.16523654,2734.1,2733.6,3.65811]
[1739588638855,5.16523654,2734.1,2733.8,3.0]
[1739588639058,5.16523654,2734.1,2733.9,0.8115]
[1739588641336,8.82276654,2734.1,2733.9,0.8115]
[1739588641667,8.82276654,2734.1,2733.6,6.65813]
[1739588641839,3.65753,2734.1,2733.7,0.8115]
[1739588642890,3.66232,2734.3,2733.8,3.0]
[1739588643192,3.65751,2734.1,2733.7,0.8115]
[1739588643978,3.65769,2734.0,2733.7,0.8115]
[1739588644137,3.65769,2734.0,2733.6,1.0800797]
[1739588644337,4.47679,2734.0,2733.6,1.0800797]
[1739588645739,0.8191,2734.0,2733.6,1.0800797]
[1739588645967,3.65757,2734.1,2733.7,0.48915797]
[1739588646851,0.8241,2734.3,2733.7,0.48915797]
[1739588647052,0.005,2734.3,2733.8,0.8115]
[1739588647381,4.47662,2734.1,2733.7,3.0]
[1739588648777,0.8191,2734.1,2733.7,3.0]
[1739588648993,3.65746,2734.2,2733.7,3.0]
[1739588649277,3.65746,2734.2,2733.7,3.746959]
[1739588649858,3.65751,2734.1,2733.7,3.746959]
[1739588650282,3.65746,2734.2,2733.7,3.746959]
[1739588650474,7.31494,2734.2,2733.7,3.746959]
[1739588650661,3.65746,2734.2,2733.7,3.746959]
[1739588650977,3.65746,2734.2,2733.7,7.404989]
[1739588651184,3.65746,2734.2,2733.8,1.1874569]
[1739588651360,3.65758,2734.1,2733.7,3.0]
[1739588652693,0.8241,2734.3,2733.6,0.8115]
[1739588652895,3.65772,2734.0,2733.6,0.8115]
[1739588658289,3.6576,2734.1,2733.6,4.46965]
[1739588658491,3.6576,2734.1,2733.7,3.0]
[1739588658816,3.65751,2734.1,2733.7,3.0]
[1739588659417,3.65764,2734.0,2733.6,0.8115]
[1739588660027,3.65779,2733.9,2733.6,0.8115]
[1739588660199,3.6576,2734.1,2733.3,6.65848]
[1739588660420,3.6576,2734.1,2733.5,3.0]
[1739588660421,3.65785,2733.9,2733.5,3.0]
[1739588660593,3.65791,2733.8,2733.4,0.8014]
[1739588660796,3.65785,2733.9,2733.4,7.45977]
[1739588663128,3.65794,2733.8,2733.4,3.8014]
[1739588663291,3.65794,2733.8,2733.4,0.8014]
[1739588663693,0.8265,2734.0,2733.4,0.8014]
[1739588663913,3.65821,2733.6,2733.2,0.8014]
[1739588664118,3.65821,2733.6,2733.2,1.547427]
[1739588664853,4.48471,2733.6,2733.1,3.0]
[1739588665030,3.65846,2733.4,2733.0,0.7742]
[1739588665697,3.65832,2733.5,2733.0,7.43317]
[1739588666939,3.65832,2733.5,2733.0,0.7742]
[1739588667098,3.65847,2733.4,2733.0,0.7742]
[1739588667604,4.48471,2733.6,2733.0,0.7742]
[1739588668478,3.65846,2733.4,2733.0,1.883434]
[1739588668770,3.65832,2733.5,2733.0,1.883434]
[1739588669115,3.65832,2733.5,2733.1,3.0]
[1739588669311,3.65845,2733.4,2733.0,1.883434]
[1739588669552,3.65845,2733.4,2733.0,0.7742]
[1739588670017,3.65885,2733.1,2732.8,0.7742]
[1739588670318,3.65899,2733.0,2732.8,0.7742]
[1739588670552,7.31779,2733.1,2732.8,0.7742]
[1739588671377,3.65885,2733.1,2732.8,0.7742]
[1739588671736,3.65905,2733.0,2732.5,3.7742]
[1739588671963,7.3178,2733.1,2732.6,0.743391]
[1739588672763,3.65885,2733.1,2732.6,0.743391]
[1739588672972,3.659,2733.0,2732.6,0.743391]
[1739588674560,7.3178,2733.1,2732.6,0.743391]
[1739588674754,3.65885,2733.1,2732.7,0.8177221]
[1739588674978,7.31777,2733.1,2732.7,0.8177221]
[1739588675337,3.65898,2733.0,2732.7,0.8177221]
[1739588675537,3.65885,2733.1,2732.7,0.8177221]
[1739588675950,3.65898,2733.0,2732.7,0.8177221]
[1739588676674,3.65898,2733.0,2732.5,7.43383]
[1739588677254,7.3178,2733.1,2732.5,6.65963]
[1739588677454,3.65885,2733.1,2732.6,4.43363]
[1739588678472,7.31778,2733.1,2732.6,4.43363]
[1739588678677,3.65885,2733.1,2732.6,4.43363]
[1739588679137,3.65885,2733.1,2732.6,0.7742]
[1739588679339,3.65906,2733.0,2732.6,0.7742]
[1739588680946,3.65885,2733.1,2732.6,0.7742]
[1739588681147,7.31783,2733.1,2732.6,0.7742]
[1739588681372,3.65885,2733.1,2732.7,3.0]
[1739588681545,7.31781,2733.1,2732.7,3.0]
[1739588682078,3.65885,2733.1,2732.6,0.7742]
[1739588682255,3.65898,2733.0,2732.6,2.183551]
[1739588682638,3.65885,2733.1,2732.6,2.183551]
[1739588682844,3.65899,2733.0,2732.6,0.7742]
[1739588683045,3.65885,2733.1,2732.6,0.7742]
[1739588684380,3.65902,2733.0,2732.6,0.7742]
[1739588686487,3.65885,2733.1,2732.6,0.7742]
[1739588686680,7.31782,2733.1,2732.6,0.7742]
[1739588686886,3.65894,2733.1,2732.6,0.7742]
[1739588687181,3.65894,2733.1,2732.6,1.883544]
[1739588687352,3.65906,2733.0,2732.6,0.7742]
[1739588687749,3.65894,2733.1,2732.6,0.7742]
[1739588687979,3.65898,2733.0,2732.6,4.43369]
[1739588688287,3.65898,2733.0,2732.6,0.7742]
[1739588688581,3.65894,2733.1,2732.6,0.7742]
[1739588688786,7.31792,2733.1,2732.6,0.7742]
[1739588688983,3.65894,2733.1,2732.6,0.7742]
[1739588689165,7.3179,2733.1,2732.6,0.7742]
[1739588689486,3.65894,2733.1,2732.6,4.43371]
[1739588689663,7.31786,2733.1,2732.6,4.43371]
[1739588690055,3.65892,2733.1,2732.6,4.43371]
[1739588690256,3.65892,2733.1,2732.6,5.543047]
[1739588690678,3.65907,2733.0,2732.6,1.883537]
[1739588691476,3.65892,2733.1,2732.6,5.543037]
[1739588692084,3.65884,2733.2,2732.6,1.883537]
[1739588692288,3.65898,2733.0,2732.6,1.883537]
[1739588696474,3.65898,2733.0,2732.6,0.7742]
[1739588701607,5.16523654,2733.1,2732.6,0.7742]
[1739588701825,8.82409654,2733.1,2732.6,4.43368]
[1739588702231,5.16523654,2733.1,2732.8,3.0]
[1739588702380,5.16523654,2733.1,2732.9,0.7892]
[1739588704412,5.16523654,2733.1,2733.0,7.44818]
[1739588709622,5.16523654,2734.1,2733.1,3.7697]
[1739588709803,5.16523654,2734.1,2733.7,0.7697]
[1739588710004,5.16523654,2734.1,2733.7,4.42766]
[1739588710393,5.16523654,2734.1,2733.9,3.65772]
[1739588710808,5.16523654,2734.1,2733.8,3.7598]
[1739588711125,5.94873654,2734.1,2733.8,3.0]
[1739588711523,5.16523654,2734.1,2733.8,3.0]
[1739588711928,5.16523654,2734.1,2733.8,3.7598]
[1739588712135,5.16523654,2734.1,2733.8,7.41769]
[1739588712431,5.16523654,2734.1,2733.8,3.7598]
[1739588713815,5.16523654,2734.1,2733.8,7.41769]
[1739588714133,5.16523654,2734.1,2733.8,3.7598]
[1739588715536,5.16523654,2734.1,2733.9,3.65775]
[1739588716427,0.005,2734.3,2734.2,4.41717]
[1739588716741,0.005,2734.3,2734.2,7.41717]
[1739588719064,0.005,2734.3,2734.2,6.65737]
[1739588723551,0.005,2734.3,2734.2,3.0]
[1739588724051,0.005,2734.3,2734.2,6.65737]
[1739588724438,0.005,2734.3,2734.2,7.764829]
[1739588727309,0.005,2734.3,2734.2,6.65737]
[1739588740867,0.005,2734.3,2734.2,6.69394042]
[1739588741169,0.005,2734.3,2734.2,7.46433975]
[1739588742445,0.005,2734.3,2734.2,7.42777]
[1739588743693,0.005,2734.3,2734.2,3.7704]
[1739588743886,0.005,2734.3,2734.2,3.0]
[1739588744965,0.005,2734.3,2734.2,6.65737]
[1739588745600,0.005,2734.3,2734.2,7.8424914]
[1739588745897,0.005,2734.3,2734.2,8.6128914]
[1739588746524,0.005,2734.3,2734.2,7.42777]
[1739588747000,0.005,2734.3,2734.2,6.65737]
[1739588748804,0.005,2734.3,2734.2,3.0]
[1739588749682,0.005,2734.3,2734.2,6.65737]
[1739588755202,0.005,2734.3,2734.2,3.0]
[1739588756080,0.7606,2734.3,2734.2,3.0]
[1739588756492,0.005,2734.3,2734.2,3.0]
[1739588757684,0.005,2734.3,2734.2,6.65737]
[1739588757889,0.005,2734.3,2734.2,3.0]
[1739588758839,3.66224,2734.3,2733.7,4.47271]
[1739588759145,0.005,2734.3,2733.9,3.0]
[1739588759283,0.005,2734.3,2733.9,3.65776]
[1739588759706,0.005,2734.3,2733.7,0.8148]
[1739588759878,0.005,2734.3,2733.6,3.0]
[1739588759879,3.65759,2734.1,2733.6,3.0]
[1739588760218,3.65759,2734.1,2733.6,6.65815]
[1739588761012,0.7556,2734.2,2733.6,3.0]
[1739588761212,0.7556,2734.2,2733.8,3.0]
[1739588762829,0.7556,2734.2,2733.8,6.65781]
[1739588763418,0.7556,2734.2,2733.8,3.0]
[1739588763616,5.92083654,2734.2,2733.8,3.0]
[1739588764488,3.65752,2734.1,2733.6,3.0]
[1739588765411,7.31512,2734.1,2733.6,3.0]
[1739588765723,3.65752,2734.1,2733.6,3.0]
[1739588766509,3.65794,2733.8,2733.3,3.65853]
[1739588766816,0.7556,2733.9,2733.4,3.6584]
[1739588766991,0.7556,2733.9,2733.5,3.0]
[1739588767593,0.7556,2733.9,2733.5,6.65828]
[1739588768188,0.7556,2733.9,2733.5,3.0]
[1739588768929,4.41338,2733.9,2733.5,3.0]
[1739588769401,3.65791,2733.8,2733.5,3.0]
[1739588769607,8.82314654,2733.8,2733.5,3.0]
[1739588769924,3.65806,2733.7,2733.2,7.47348]
[1739588770122,8.82314654,2733.8,2733.2,7.47348]
[1739588770337,12.48115654,2733.8,2733.2,7.47348]
[1739588770506,8.82314654,2733.8,2733.2,7.47348]
[1739588771423,8.82314654,2733.8,2733.3,3.65856]
[1739588772193,3.65805,2733.7,2733.2,7.47348]
[1739588772399,0.7828,2733.6,2733.2,3.0]
[1739588773235,3.65832,2733.5,2733.0,6.65892]
[1739588773455,5.16523654,2733.5,2733.2,3.65866]
[1739588773614,5.16523654,2733.5,2733.3,3.7558]
[1739588773801,5.16523654,2733.5,2733.4,6.65844]
[1739588774519,5.16523654,2733.5,2733.4,3.0]
[1739588781350,5.94803654,2733.5,2733.4,3.0]
[1739588784661,5.16523654,2733.5,2733.4,3.0]
[1739588793747,5.16523654,2733.5,2733.4,6.65844]
[1739588793975,5.16523654,2733.5,2733.4,8.495547]
[1739588795401,5.16523654,2733.5,2733.4,3.8054]
[1739588795531,5.16523654,2733.5,2733.4,7.46384]